[Event "Caplin Hastings Masters 2023-24"]
[Site "Hastings"]
[Date "2024.01.03"]
[Round "7.45"]
[White "Ruane, Brendan J"]
[Black "Patel, Zain"]
[Result "0-1"]
[ECO "A03"]
[WhiteElo "1823"]
[BlackElo "1841"]
[Annotator "NA RC"]
[PlyCount "102"]
[EventDate "2023.12.18"]
[EventType "swiss"]
[EventCountry "ENG"]
[SourceTitle "playchess.com"]
[Source "ChessBase"]
[SourceQuality "1"]
[TimeControl "40/6000+30:3000+30"]

1. g3 {[%emt 0:00:07]} d5 {[%emt 0:00:38]} 2. f4 {[%emt 0:00:31]} Nf6 {[%emt 0:00:44]} 3. Bg2 {[%emt 0:00:51]} c5 {[%emt 0:01:16]} 4. Nf3 {[%emt 0:00:12]} Nc6 {[%emt 0:01:33]} 5. O-O {[%emt 0:00:29]} Bf5 {[%emt 0:03:35]} 6. d3 {[%emt 0:00:34]} h6 {[%emt 0:03:10]} 7. Nc3 {[%emt 0:02:50]} e6 {[%emt 0:06:23]} 8. Ne5 {[%emt 0:12:00]} Bh7 {[%emt 0:15:28]} 9. Nxc6 {[%emt 0:05:29]} bxc6 {[%emt 0:00:07]} 10. b3 {[%emt 0:01:03]} Be7 {[%emt 0:02:02]} 11. Na4 {[%emt 0:02:13]} O-O {[%emt 0:01:13]} 12. Qe1 {[%emt 0:02:18]} Nd7 {[%emt 0:09:49]} 13. Ba3 {[%emt 0:04:15]} Qc7 {[%emt 0:04:44]} 14. Rc1 {[%emt 0:01:25]} e5 {[%emt 0:01:56]} 15. e4 {[%emt 0:11:24]} exf4 {[%emt 0:17:54]} 16. gxf4 {[%emt 0:08:38]} Rae8 {[%emt 0:05:54]} 17. Qf2 {[%emt 0:08:30]} g5 {[%emt 0:07:34]} 18. exd5 {[%emt 0:09:05]} cxd5 {[%emt 0:01:27]} 19. Bxd5 {[%emt 0:00:33]} gxf4 {[%emt 0:03:18]} 20. Rce1 {[%emt 0:05:45]} Qd6 {[%emt 0:04:13]} 21. Bc4 {[%emt 0:06:47]} Bf6 {[%emt 0:03:37]} 22. Qg2+ {[%emt 0:00:31]} Kh8 {[%emt 0:00:35]} 23. Rxe8 {[%emt 0:04:35]} Rxe8 {[%emt 0:00:30]} 24. Bxf7 {[%emt 0:00:40]} Re7 {[%emt 0:03:55]} 25. Qd5 {[%emt 0:02:55]} Bd4+ {[%emt 0:01:11]} 26. Kh1 {[%emt 0:03:00]} Qxd5+ {[%emt 0:00:50]} 27. Bxd5 {[%emt 0:00:13]} Re2 {[%emt 0:01:21]} 28. Rxf4 {[%emt 0:06:57]} Re1+ {[%emt 0:01:00]} 29. Kg2 {[%emt 0:00:06]} Re2+ {[%emt 0:00:02]} 30. Kg3 {[%emt 0:00:36]} Be5 {[%emt 0:00:29]} 31. Bb2 {[%emt 0:00:06]} Bxb2 {[%emt 0:00:18]} 32. Nxb2 {[%emt 0:00:05]} Rxc2 {[%emt 0:00:13]} 33. Na4 {[%emt 0:00:31]} Bxd3 {[%emt 0:04:36]} 34. Rf7 {[%emt 0:00:59]} Ne5 {[%emt 0:00:53]} 35. Rxa7 {[%emt 0:00:11]} Rxa2 {[%emt 0:00:15]} 36. b4 {[%emt 0:00:48]} c4 {[%emt 0:01:38]} 37. Ra8+ {[%emt 0:02:43]} Kg7 {[%emt 0:00:26]} 38. Nc3 {[%emt 0:00:53]} Rb2 {[%emt 0:00:35]} 39. Ra7+ {[%emt 0:02:21]} Kf8 {[%emt 0:01:31]} 40. Kf4 {[%emt 0:06:31]} Ng6+ {[%emt 0:01:09]} 41. Ke3 {[%emt 0:50:27]} Rxb4 {[%emt 0:04:23]} 42. Rh7 {[%emt 0:00:00]} Rb3 {[%emt 0:02:22]} 43. Kd4 {[%emt 0:00:00]} Ne7 {[%emt 0:13:43]} 44. Rf7+ {[%emt 0:00:00]} Ke8 {[%emt 0:00:06]} 45. Rf6 {[%emt 0:00:00]} Nf5+ {[%emt 0:01:24]} 46. Rxf5 {[%emt 0:00:00]} Bxf5 {[%emt 0:00:09]} 47. Ne4 {[%emt 0:00:00]} Bxe4 {[%emt 0:01:00]} 48. Kxe4 {[%emt 0:00:00]} Rc3 {[%emt 0:01:44]} 49. Kd4 {[%emt 0:00:00]} Rc2 {[%emt 0:00:23]} 50. h3 {[%emt 0:00:00]} c3 {[%emt 0:00:20]} 51. Be6 {[%emt 0:00:00]} Re2 {[%emt 0:00:21]} 0-1

[Event "Caplin Hastings Masters 2023-24"]
[Site "Hastings"]
[Date "2024.01.03"]
[Round "7.46"]
[White "Howell, Oliver W"]
[Black "Prudent, Sylvio"]
[Result "1-0"]
[ECO "A80"]
[WhiteElo "1782"]
[BlackElo "1639"]
[Annotator "NA RC"]
[PlyCount "37"]
[EventDate "2023.12.18"]
[EventType "swiss"]
[EventCountry "ENG"]
[SourceTitle "playchess.com"]
[Source "ChessBase"]
[SourceQuality "1"]
[TimeControl "40/6000+30:3000+30"]

1. Nf3 {[%emt 0:00:54]} f5 {[%emt 0:00:21]} 2. d4 {[%emt 0:00:18]} Nf6 {[%emt 0:00:19]} 3. Bf4 {[%emt 0:00:29]} e6 {[%emt 0:00:54]} 4. e3 {[%emt 0:00:21]} b6 {[%emt 0:00:37]} 5. h3 {[%emt 0:00:39]} Bb7 {[%emt 0:00:20]} 6. Bd3 {[%emt 0:00:57]} Be7 {[%emt 0:01:29]} 7. Nbd2 {[%emt 0:00:43]} d6 {[%emt 0:00:36]} 8. c3 {[%emt 0:03:36]} Ne4 {[%emt 0:08:21]} 9. Qc2 {[%emt 0:08:54]} d5 {[%emt 0:02:00]} 10. Ne5 {[%emt 0:12:20]} Nxd2 {[%emt 0:02:20]} 11. Kxd2 {[%emt 0:03:44]} Bd6 {[%emt 0:07:22]} 12. g4 {[%emt 0:06:21]} g6 {[%emt 0:07:47]} 13. gxf5 {[%emt 0:04:58]} exf5 {[%emt 0:00:47]} 14. Rag1 {[%emt 0:14:00]} c6 {[%emt 0:10:53]} 15. Bxf5 {[%emt 0:21:59]} gxf5 {[%emt 0:02:54]} 16. Qxf5 {[%emt 0:01:09]} Bxe5 {[%emt 0:02:09]} 17. Qxe5+ {[%emt 0:01:56]} Kd7 {[%emt 0:00:31]} 18. Rg7+ {[%emt 0:01:23]} Kc8 {[%emt 0:00:08]} 19. Rc7+ {[%emt 0:01:00]} 1-0

[Event "Caplin Hastings Masters 2023-24"]
[Site "Hastings"]
[Date "2024.01.04"]
[Round "8.1"]
[White "Jacobson, Brandon"]
[Black "Zhang, Pengxiang"]
[Result "1/2-1/2"]
[ECO "D85"]
[WhiteElo "2538"]
[BlackElo "2558"]
[Annotator "TA"]
[PlyCount "196"]
[EventDate "2023.12.18"]
[EventType "swiss"]
[EventCountry "ENG"]
[SourceTitle "playchess.com"]
[Source "ChessBase"]
[SourceQuality "1"]
[TimeControl "40/6000+30:3000+30"]

{[%evp 19,196,0,9,4,8,10,5,6,16,0,23,29,24,22,30,19,14,21,21,18,18,14,24,16,25,21,32,32,32,32,67,67,64,66,66,70,70,62,70,70,82,82,82,82,82,82,118,118,118,87,89,83,83,82,82,82,82,83,83,82,82,82,82,79,79,79,79,79,82,82,82,82,82,82,82,82,82,82,85,84,83,82,83,82,82,82,96,82,82,82,82,79,79,77,82,79,82,0,82,77,77,77,77,77,80,56,58,58,58,58,58,58,58,51,51,58,58,51,58,58,58,58,58,58,58,58,1646,1503,4802,4149,2067,0,110,0,1539,58,58,58,58,58,66,29,29,29,29,29,29,29,29,0,9,9,24,24,72,72,72,72,72,72,72,72,72,24,24,24,24,0,24,0,8,8,8,8,8,12,19,19,481]} 1. d4 {[%emt 0:00:05]} Nf6 {[%emt 0:00:05]} 2. c4 {[%emt 0:00:06]} g6 {[%emt 0:00:05]} 3. Nc3 {[%emt 0:01:12]} d5 {[%emt 0:00:04]} 4. cxd5 {[%emt 0:01:07]} Nxd5 {[%emt 0:00:03]} 5. e4 {[%emt 0:00:13]} Nxc3 {[%emt 0:00:03]} 6. bxc3 {[%emt 0:00:05]} Bg7 {[%emt 0:00:03]} 7. Nf3 {[%emt 0:00:06]} c5 {[%emt 0:00:03]} 8. h3 {[%emt 0:00:14]} O-O {[%emt 0:01:06]} 9. Be2 {[%emt 0:00:19]} cxd4 {[%emt 0:00:05]} 10. cxd4 {[%emt 0:00:06]} Nc6 {[%emt 0:00:04]} 11. Be3 {[%emt 0:00:09]} Qa5+ {[%emt 0:00:05]} 12. Bd2 {[%emt 0:00:07]} Qa3 {[%emt 0:00:05]} 13. d5 {[%emt 0:00:35]} Ne5 {[%emt 0:02:26]} 14. Rb1 {[%emt 0:00:45]} Bd7 {[%emt 0:03:12]} 15. Nxe5 {[%emt 0:09:24]} Bxe5 {[%emt 0:01:10]} 16. Rxb7 {[%emt 0:00:06]} Ba4 {[%emt 0:02:52]} 17. Qc1 {[%emt 0:00:11]} Qxa2 {[%emt 0:00:51]} 18. Bc4 {[%emt 0:12:09]} (18. Rxe7 $2 Rac8 19. Rxe5 Rxc1+ 20. Bxc1 Qa1 $19) 18... Qc2 {[%emt 0:00:39]} 19. Qxc2 {[%emt 0:00:51]} (19. Rxe7 $2 Qxe4+ 20. Be3 (20. Kf1 $2 Rfc8 $19) 20... Qxg2 $19) 19... Bxc2 {[%emt 0:00:04]} 20. Rxe7 {[%emt 0:00:06]} Bf6 {[%emt 0:08:40]} 21. Rc7 {[%emt 0:00:36]} Be5 {[%emt 0:43:18]} 22. d6 {[%emt 0:00:42]} Bxe4 {[%emt 0:02:12]} (22... Bxd6 {simplifies} 23. Bxf7+ Rxf7 24. Rxc2 a5) 23. O-O {[%emt 0:00:45]} Bxd6 {[%emt 0:00:50]} 24. Rd7 {[%emt 0:00:06]} Rad8 {[%emt 0:01:10]} 25. Bxf7+ $1 {[%emt 0:07:32]} (25. Rxa7 Bc5 26. Ra5 Rxd2 $11) 25... Kg7 $1 {[%emt 0:00:17]} 26. Bc3+ {[%emt 0:00:09]} (26. Rxa7 $2 Rxf7 27. Ra4 Bf5 28. Bc3+ Kg8 $19) 26... Kh6 {[%emt 0:00:05]} 27. Rxa7 {[%emt 0:04:40]} Bc5 {[%emt 0:04:00]} 28. Rc7 {[%emt 0:15:06]} Bd6 {[%emt 0:24:39]} 29. Rc4 $1 {[%emt 0:00:14]} Rxf7 {[%emt 0:10:46]} (29... Bxg2 30. Bf6 Bf3 31. Bxd8 (31. Rh4+ Bh5 $16) 31... Rxd8 32. Re1 $16) 30. Rxe4 {[%emt 0:00:07]} Bc5 {[%emt 0:00:02]} 31. g3 {[%emt 0:04:27]} Rd3 {[%emt 0:00:07]} 32. Be5 {[%emt 0:01:01]} Bd6 {[%emt 0:06:14]} 33. Bd4 {[%emt 0:09:05]} Re7 {[%emt 0:00:13]} 34. Rh4+ {[%emt 0:06:27]} Kg5 {[%emt 0:00:00]} 35. Rg4+ {[%emt 0:00:10]} Kf5 {[%emt 0:00:04]} 36. Rb1 {[%emt 0:00:03]} Ke6 {[%emt 0:00:20]} 37. Rb6 {[%emt 0:19:30]} Rd7 {[%emt 0:00:04]} 38. Kg2 {[%emt 0:00:35]} Kf7 {[%emt 0:00:16]} 39. Rh4 {[%emt 0:01:48]} Kg8 {[%emt 0:02:14]} 40. Be3 {[%emt 0:02:10]} Rd5 {[%emt 0:00:50]} 41. Ra6 {[%emt 1:05:17]} Be7 {[%emt 0:09:28]} 42. Re4 {[%emt 0:00:00]} Bg5 {[%emt 0:04:23]} 43. Bb6 {[%emt 0:00:00]} Be7 {[%emt 0:08:43]} 44. Ra8+ {[%emt 0:00:00]} Kg7 {[%emt 0:01:52]} 45. Rc8 {[%emt 0:00:00]} Kf7 {[%emt 0:07:18]} 46. h4 {[%emt 0:00:00]} Bd8 {[%emt 0:09:09]} 47. Be3 {[%emt 0:00:00]} Bf6 {[%emt 0:00:04]} 48. Bc5 {[%emt 0:00:00]} Rd8 {[%emt 0:04:32]} 49. Rc6 {[%emt 0:00:00]} Be5 {[%emt 0:00:13]} 50. Be3 {[%emt 0:00:00]} R8d7 {[%emt 0:01:14]} 51. Bh6 {[%emt 0:00:00]} Bg7 {[%emt 0:00:52]} 52. Bg5 {[%emt 0:03:50]} Bd4 {[%emt 0:00:06]} 53. Rf4+ {[%emt 0:01:52]} Kg7 {[%emt 0:00:19]} 54. Rf3 {[%emt 0:00:52]} R5d6 {[%emt 0:02:07]} 55. Rc8 {[%emt 0:00:25]} Bf6 {[%emt 0:00:16]} 56. Bf4 {[%emt 0:00:16]} Rd3 {[%emt 0:01:50]} 57. Be3 {[%emt 0:00:17]} R3d5 {[%emt 0:01:45]} 58. Bf4 {[%emt 0:02:28]} Rd3 $1 {[%emt 0:00:07]} 59. Rxd3 {[%emt 0:00:53]} Rxd3 {[%emt 0:00:01]} 60. Rc7+ {[%emt 0:00:07]} Kg8 {[%emt 0:00:06]} 61. Bh6 {[%emt 0:00:23]} Rd5 {[%emt 0:02:12]} 62. f4 {[%emt 0:00:38]} Rd3 {[%emt 0:01:36]} 63. Kh3 {[%emt 0:00:20]} Bc3 {[%emt 0:00:54]} 64. Re7 {[%emt 0:00:16]} Bf6 {[%emt 0:00:10]} 65. Rb7 {[%emt 0:00:09]} Rd5 {[%emt 0:01:24]} 66. Ra7 {[%emt 0:01:06]} Rb5 {[%emt 0:00:48]} 67. Rd7 {[%emt 0:00:32]} Ra5 {[%emt 0:00:13]} 68. Kg4 {[%emt 0:00:55]} Rb5 {[%emt 0:00:15]} 69. Ra7 {[%emt 0:00:19]} Rd5 {[%emt 0:00:09]} 70. Rb7 {[%emt 0:00:01]} Ra5 {[%emt 0:00:07]} 71. Rb3 {[%emt 0:00:22]} Kf7 {[%emt 0:00:19]} 72. Kf3 {[%emt 0:00:10]} Rh5 $2 {[%emt 0:01:37][%mdl 8192] [#]} (72... Ra7 $14) 73. Rb7+ $1 $18 {[%emt 0:01:38]} Kg8 {[%emt 0:00:01] [#]} 74. Rb8+ $1 {[%emt 0:00:04]} ({Not} 74. Bg5 Bxg5 75. hxg5 (75. fxg5 h6 $14) 75... Rh2 $16) 74... Kf7 {[%emt 0:00:02]} 75. Rb7+ $2 {[%emt 0:00:06]} (75. Bg5 $18 {is the precise move to win.} Bxg5 76. fxg5) 75... Kg8 $1 $16 {[%emt 0:00:01]} 76. Rb8+ $2 {[%emt 0:01:19][%mdl 8192]} (76. Bg5 $16 Bxg5 77. hxg5 (77. fxg5 h6 $14)) 76... Kf7 $18 {[%emt 0:00:00]} 77. Rf8+ $2 {[%emt 0:00:31]} (77. Bg5 $18 Bxg5 78. fxg5) 77... Ke7 $14 {[%emt 0:00:44]} 78. Rxf6 $1 {[%emt 0:00:03]} Rxh6 {[%emt 0:00:41]} (78... Kxf6 $2 79. Bg5+ Ke6 80. g4 $18) 79. Ra6 {[%emt 0:00:04]} Rh5 {[%emt 0:00:09]} 80. Kg4 {[%emt 0:01:29]} Kf7 {[%emt 0:00:16]} 81. Ra7+ {[%emt 0:00:17]} Kf8 {[%emt 0:02:04]} 82. Kf3 {[%emt 0:00:32]} h6 {[%emt 0:00:25]} 83. Rd7 {[%emt 0:00:41]} Ra5 {[%emt 0:00:13]} 84. g4 {[%emt 0:00:27]} h5 {[%emt 0:01:10]} 85. g5 {[%emt 0:00:35]} Ra4 {[%emt 0:00:54]} 86. Ke3 {[%emt 0:00:05]} Kg8 {[%emt 0:00:15]} (86... Ra3+ $1 $11 87. Rd3 Ra4) 87. Rd4 $16 {[%emt 0:00:43]} Ra1 {[%emt 0:01:21]} 88. f5 {[%emt 0:00:42]} gxf5 {[%emt 0:00:22]} 89. Kf4 {[%emt 0:00:02]} Rf1+ {[%emt 0:02:09]} 90. Ke5 {[%emt 0:00:04]} Kg7 {[%emt 0:00:02]} 91. Rd7+ {[%emt 0:01:11]} (91. Rf4 $16 Ra1 92. Kxf5 (92. Rxf5 Ra5+ 93. Kf4 Ra3 $16)) 91... Kg6 $11 {[%emt 0:00:04]} 92. Rd6+ {[%emt 0:00:03]} Kg7 {[%emt 0:00:05]} 93. Rh6 {[%emt 0:00:09]} Ra1 {[%emt 0:01:39]} 94. Kxf5 {[%emt 0:01:10]} Ra5+ {[%emt 0:00:17]} 95. Kf4 {[%emt 0:00:02]} Ra4+ {[%emt 0:00:04]} 96. Kg3 {[%emt 0:00:04]} Ra3+ {[%emt 0:00:06]} 97. Kf2 {[%emt 0:00:03]} Ra4 {[%emt 0:00:20]} 98. Rxh5 {[%emt 0:00:07]} Ra6 $2 {[%emt 0:00:04][%mdl 8192]} (98... Ra2+ $11 {and Black is okay.} 99. Ke3 Ra3+ 100. Kd4 Ra6) 1/2-1/2

[Event "Caplin Hastings Masters 2023-24"]
[Site "Hastings"]
[Date "2024.01.04"]
[Round "8.2"]
[White "Gupta, Abhijeet"]
[Black "Sulskis, Sarunas"]
[Result "1-0"]
[ECO "D41"]
[WhiteElo "2596"]
[BlackElo "2490"]
[Annotator "TA"]
[PlyCount "109"]
[EventDate "2023.12.18"]
[EventType "swiss"]
[EventCountry "ENG"]
[SourceTitle "playchess.com"]
[Source "ChessBase"]
[SourceQuality "1"]
[TimeControl "40/6000+30:3000+30"]

{[%evp 13,109,33,32,34,22,8,14,24,49,35,32,23,31,32,21,20,22,20,18,16,16,14,11,6,6,12,69,63,62,64,66,65,92,92,95,101,81,64,127,89,83,78,163,187,170,171,238,231,240,250,259,198,225,243,225,236,234,221,215,220,196,216,208,170,195,170,357,348,583,528,1037,920,962,852,1556,1530,1484,1358,1640,1640,29970,29971,29973,29975,29974,29975,29977,29978,29973,29974,29978,29979,29978,29979,29979,29980,29980,29981]} 1. d4 {[%emt 0:00:17]} Nf6 {[%emt 0:00:08]} 2. c4 {[%emt 0:00:36]} e6 {[%emt 0:00:14]} 3. Nf3 {[%emt 0:00:49]} d5 {[%emt 0:01:02]} 4. Nc3 {[%emt 0:00:13]} c5 {[%emt 0:02:28]} 5. cxd5 {[%emt 0:00:20]} cxd4 {[%emt 0:00:14]} 6. Qxd4 {[%emt 0:00:09]} exd5 {[%emt 0:00:23]} 7. e4 {[%emt 0:00:44]} Nc6 {[%emt 0:04:58]} 8. Bb5 {[%emt 0:00:06][%cal Re4d5] D41: Queen's Gambit Declined: Semi-Tarrasch with 5 cxd5.} dxe4 {[%emt 0:00:52]} 9. Qxd8+ {[%emt 0:00:34]} Kxd8 {[%emt 0:00:08]} 10. Ng5 {[%emt 0:00:29][%csl LRe4,LRf7] The position is equal.} Be6 {[%emt 0:00:21]} 11. Bxc6 {[%emt 0:01:29]} (11. Ngxe4 Nxe4 12. Nxe4 Bb4+ 13. Nc3 Ke7 $11) 11... bxc6 {[%emt 0:00:38]} 12. Nxe6+ {[%emt 0:00:06]} fxe6 {[%emt 0:00:05]} 13. Ke2 {[%emt 0:00:04]} Bb4 {[%emt 0:26:44]} 14. Rd1+ {[%emt 0:05:37]} Ke7 {[%emt 0:01:07]} 15. Na4 {[%emt 0:00:31]} Rhd8 {[%emt 0:12:26]} 16. Rxd8 {[%emt 0:02:02]} Rxd8 {[%emt 0:00:24]} 17. Be3 {[%emt 0:00:05][%cal Oa2a3]} Rd5 {[%emt 0:16:24]} 18. Rc1 {[%emt 0:02:47][%mdl 1024] White has compensation.} Ra5 {[%emt 0:01:59]} 19. b3 {[%emt 0:00:35]} Kd7 {[%emt 0:00:56]} ({Black should play} 19... Kd6 $11) 20. Bc5 $1 $14 {[%emt 0:26:52]} Nd5 {[%emt 0:05:27][%cal Od5c3]} 21. Rc4 {[%emt 0:00:48][%csl LRb4,LRe4] Dodges Nc3+} (21. Bxb4 Nxb4 22. Nc5+ Kc7 $11) 21... Bxc5 {[%emt 0:08:15]} 22. Nxc5+ {[%emt 0:00:06][%mdl 4096] Endgame KRN-KRN} Ke7 {[%emt 0:00:06]} 23. a4 {[%emt 0:00:15]} Nb6 {[%emt 0:05:57]} 24. Rc1 {[%emt 0:03:04]} Nd5 {[%emt 0:00:23]} 25. g3 {[%emt 0:00:26] [#]} h6 $146 {[%emt 0:05:10]} (25... Nb4 $1 $14) ({Predecessor:} 25... Nb4 26. Rc4 Na6 27. Nb7 Rd5 28. Rxc6 Nb4 29. Rc4 Nd3 30. Ke3 Ne5 31. Rc7+ Kf6 {1-0 Yilmaz,M (2624)-Nisipeanu,L (2652) EU-ch 22nd Terme Catez 2022 (11)}) 26. h4 {[%emt 0:02:57]} (26. Nxe4 Ra6 $14) 26... Nb4 {[%emt 0:01:05][%cal Ob4d3]} 27. Rc4 {[%emt 0:03:02]} Nd3 {[%emt 0:02:08]} 28. Nxe4 $18 {[%emt 0:02:28]} (28. Nxd3 $6 exd3+ 29. Kxd3 Rd5+ 30. Kc3 c5 $11) 28... Ne5 {[%emt 0:00:33]} 29. Rc2 {[%emt 0:16:37] aiming for Nc5.} Ra6 {[%emt 0:00:57]} (29... Rd5 $142 30. f4 Rd4) 30. Nc5 $1 {[%emt 0:00:23]} Rb6 {[%emt 0:00:13]} 31. Rd2 {[%emt 0:00:05] Inhibits Nd7.} g5 {[%emt 0:02:35]} 32. f4 {[%emt 0:04:36]} gxf4 {[%emt 0:00:19]} 33. gxf4 {[%emt 0:00:03]} Ng6 {[%emt 0:00:25]} 34. Rd7+ {[%emt 0:00:10]} Kf6 {[%emt 0:01:33]} 35. Rxa7 {[%emt 0:17:11]} Nxf4+ {[%emt 0:01:57]} 36. Kf3 {[%emt 0:02:16]} Rb4 {[%emt 0:00:29]} 37. Rb7 {[%emt 0:02:11]} Rd4 {[%emt 0:05:52]} 38. a5 {[%emt 0:03:13] Hoping for a6.} Nd3 {[%emt 0:00:15] [#]} 39. Ne4+ {[%emt 0:10:05]} Ke5 $2 {[%emt 0:00:39] [#]} (39... Rxe4 $2 40. Kxe4 Nc5+ 41. Ke3 Nxb7 42. a6 $18) (39... Kf5) 40. a6 $1 {[%emt 0:00:49] Black must now prevent a7.} (40. Ke3 Rxe4+ 41. Kxd3 Rxh4 $11) 40... Ne1+ $2 {[%emt 0:02:25]} (40... Rxe4 $2 41. a7 Rf4+ 42. Ke3 $18) (40... Rd8 {was necessary.} 41. a7 Ra8) 41. Kg3 {[%emt 0:54:17] Threatens to win with a7.} Kxe4 {[%emt 0:18:55] KRN-KR} 42. a7 {[%emt 0:00:00]} Rd3+ {[%emt 0:00:10]} 43. Kg4 {[%emt 0:00:00]} Rd5 {[%emt 0:12:07]} 44. Rb4+ {[%emt 0:00:00]} ({Inferior is} 44. a8=B Nf3 45. Rc7 (45. Rb4+ $2 Ke3 $19) 45... Ke3 $19) (44. a8=R h5+ 45. Kg3 Rd3+ 46. Kf2 Nc2 $11) 44... Ke3 {[%emt 0:01:52]} 45. a8=Q {[%emt 0:00:00][%cal Oa8h8] Qh8! is the strong threat.} (45. a8=B $2 Nf3 46. Kg3 Rc5 $19) 45... Nd3 {[%emt 0:00:58]} 46. Rc4 {[%emt 0:00:00][%cal Og4g3] And now Kg3! would win.} Rf5 {[%emt 0:05:28]} 47. Rc3 {[%emt 0:00:00] White mates.} ({And not} 47. Rxc6 Ne5+ 48. Kh3 Rf3+ 49. Kg2 Rf2+ 50. Kh1 Rf1+ 51. Kg2 Rf2+ 52. Kg3 Rf3+ 53. Kh2 Rf2+ 54. Kh3 Rf3+ 55. Kh2 Rf2+ 56. Kg3 Rf3+ 57. Kh2 $11) 47... h5+ {[%emt 0:02:26]} 48. Kg3 {[%emt 0:00:00]} Rf3+ {[%emt 0:07:35]} 49. Kg2 {[%emt 0:00:00]} Rf2+ {[%emt 0:00:07]} 50. Kg1 {[%emt 0:00:00]} Rf4 {[%emt 0:00:11]} 51. Qxc6 {[%emt 0:00:00]} e5 {[%emt 0:01:50] [#]} 52. Rxd3+ $1 {[%emt 0:00:00]} Kxd3 {[%emt 0:00:06]} 53. Qd5+ {[%emt 0:00:00]} Kc2 {[%emt 0:00:54]} 54. Qc5+ {[%emt 0:00:00]} Kxb3 {[%emt 0:02:03]} 55. Qxe5 {[%emt 0:00:00] Weighted Error Value: White=0.04 (flawless) /Black=0.40} 1-0